fUSD/lending_fUSD_20241125
["ID","MTS","AMOUNT","RATE_DAILY","PERIOD"]
[343335075,1732578644493,-1255.28,0.00019877,2]
[343335076,1732578644502,-220.0,0.00019894,2]
[343335077,1732578644512,-2684.04,0.00019897,2]
[343335078,1732578644521,-3339.05,0.00019897,2]
[343335079,1732578644531,-1533.0,0.00019897,2]
[343335080,1732578644540,-1226.69,0.00019897,2]
[343335081,1732578644550,-2654.98,0.00019897,2]
[343335082,1732578644559,-500.0,0.00019897,2]
[343335083,1732578644569,-500.0,0.00019898,2]
[343335084,1732578644578,-500.0,0.00019898,2]
[343335085,1732578644588,-500.0,0.00019898,2]
[343335086,1732578644597,-500.0,0.00019898,2]
[343335087,1732578644607,-500.0,0.00019898,2]
[343335088,1732578644616,-500.0,0.00019898,2]
[343335089,1732578644626,-500.0,0.00019898,2]
[343335090,1732578644635,-500.0,0.00019898,2]
[343335091,1732578644645,-491.05034453,0.00019898,2]
[343335092,1732578644655,-700.0,0.00019898,2]
[343335093,1732578644664,-1158.81,0.00019898,2]
[343335094,1732578644674,-500.0,0.00019898,2]
[343335095,1732578644683,-500.0,0.00019898,2]
[343335096,1732578644692,-610.08,0.00019898,2]
[343335097,1732578644701,-500.0,0.00019898,2]
[343335098,1732578644714,-500.0,0.00019898,2]
[343335099,1732578644723,-500.0,0.00019898,2]
[343335100,1732578644733,-500.0,0.00019898,2]
[343335101,1732578644743,-500.0,0.00019898,2]
[343335102,1732578644752,-500.0,0.00019898,2]
[343335103,1732578644762,-500.0,0.00019898,2]
[343335104,1732578644772,-1469.91,0.00019898,2]
[343335105,1732578644781,-500.0,0.00019898,2]
[343335106,1732578644791,-500.0,0.00019898,2]
[343335107,1732578644800,-500.0,0.00019898,2]
[343335108,1732578644810,-500.0,0.00019898,2]
[343335109,1732578644819,-1725.39,0.00019898,2]
[343335110,1732578644830,-1725.39,0.00019898,2]
[343335111,1732578644839,-573.28,0.00019898,2]
[343335112,1732578644848,-573.28,0.00019898,2]
[343335113,1732578644857,-500.0,0.00019898,2]
[343335114,1732578644868,-500.0,0.00019898,2]
[343335115,1732578644879,-500.0,0.00019898,2]
[343335116,1732578644889,-500.0,0.00019898,2]
[343335117,1732578644899,-1102.96,0.00019898,2]
[343335118,1732578644908,-1102.96,0.00019898,2]
[343335119,1732578644918,-500.0,0.00019898,2]
[343335120,1732578644927,-1159.46,0.00019898,2]
[343335121,1732578644936,-1159.46,0.00019898,2]
[343335122,1732578644945,-1696.48,0.00019898,2]
[343335123,1732578644955,-1696.48,0.00019898,2]
[343335124,1732578644965,-500.0,0.00019898,2]
[343335125,1732578644974,-500.0,0.00019898,2]
[343335126,1732578644983,-500.0,0.00019898,2]
[343335127,1732578644992,-500.0,0.00019898,2]
[343335128,1732578645002,-500.0,0.00019898,2]
[343335129,1732578645012,-500.0,0.00019898,2]
[343335130,1732578645021,-500.0,0.00019898,2]
[343335131,1732578645032,-500.0,0.00019898,2]
[343335132,1732578645042,-500.0,0.00019898,2]
[343335133,1732578645051,-514.8,0.00019898,2]
[343335134,1732578645061,-158.87298373,0.00019898,2]
[343335135,1732578645071,-1503.94,0.00019898,2]
[343335136,1732578645080,-1503.94,0.00019898,2]
[343335137,1732578645089,-500.0,0.00019898,2]
[343335138,1732578645100,-858.09,0.00019898,2]
[343335139,1732578645110,-858.09,0.00019898,2]
[343335140,1732578645119,-500.0,0.00019898,2]
[343335141,1732578645129,-500.0,0.00019898,2]
[343335142,1732578645138,-2118.04,0.00019898,2]
[343335143,1732578645147,-2118.04,0.00019898,2]
[343335144,1732578645157,-1935.18,0.00019898,2]
[343335145,1732578645166,-1935.18,0.00019898,2]
[343335146,1732578645175,-500.0,0.00019898,2]
[343335147,1732578645184,-500.0,0.00019898,2]
[343335148,1732578645194,-500.0,0.00019898,2]
[343335149,1732578645203,-500.0,0.00019898,2]
[343335150,1732578645221,-500.0,0.00019898,2]
[343335151,1732578645230,-500.0,0.00019898,2]
[343335152,1732578645239,-500.0,0.00019898,2]
[343335153,1732578645248,-500.0,0.00019898,2]
[343335154,1732578645259,-500.0,0.00019898,2]
[343335155,1732578645268,-500.0,0.00019898,2]
[343335156,1732578645277,-500.0,0.00019898,2]
[343335157,1732578645288,-500.0,0.00019898,2]
[343335158,1732578645298,-500.0,0.00019898,2]
[343335159,1732578645308,-719.25,0.00019898,2]
[343335160,1732578645318,-719.25,0.00019898,2]
[343335161,1732578645327,-500.0,0.00019898,2]
[343335162,1732578645336,-903.22,0.00019898,2]
[343335163,1732578645346,-662.1,0.00019898,2]
[343335164,1732578645355,-500.0,0.00019898,2]
[343335165,1732578645364,-500.0,0.00019898,2]
[343335166,1732578645374,-500.0,0.00019898,2]
[343335167,1732578645383,-1325.3,0.00019898,2]
[343335168,1732578645392,-500.0,0.00019898,2]
[343335169,1732578645401,-500.0,0.00019898,2]
[343335170,1732578645411,-500.0,0.00019898,2]
[343335171,1732578645420,-500.0,0.00019898,2]
[343335172,1732578645429,-178.52796412,0.00019898,2]
[343335173,1732578645438,-500.0,0.00019898,2]
[343335174,1732578645447,-500.0,0.00019898,2]
[343335175,1732578645457,-500.0,0.00019898,2]
[343335176,1732578645468,-500.0,0.00019898,2]
[343335177,1732578645478,-500.0,0.00019898,2]
[343335178,1732578645487,-500.0,0.00019898,2]
[343335179,1732578645497,-565.42,0.00019898,2]
[343335180,1732578645506,-500.0,0.00019898,2]
[343335181,1732578645516,-500.0,0.00019898,2]
[343335182,1732578645525,-500.0,0.00019898,2]
[343335183,1732578645535,-500.0,0.00019898,2]
[343335184,1732578645545,-500.0,0.00019898,2]
[343335185,1732578645555,-500.0,0.00019898,2]
[343335186,1732578645564,-500.0,0.00019898,2]
[343335187,1732578645573,-500.0,0.00019898,2]
[343335188,1732578645583,-500.0,0.00019898,2]
[343335189,1732578645593,-178.23288254,0.00019898,2]
[343335190,1732578645603,-613.44,0.00019898,2]
[343335191,1732578645612,-639.46,0.00019898,2]
[343335192,1732578645621,-526.43695129,0.00019898,2]
[343335193,1732578645631,-693.12,0.00019898,2]
[343335194,1732578645640,-5868.65,0.00019898,2]
[343335195,1732578645649,-808.28,0.00019898,2]
[343335196,1732578645658,-703.91,0.00019898,2]
[343335197,1732578645668,-500.0,0.00019898,2]
[343335198,1732578645677,-500.0,0.00019898,2]
[343335199,1732578645687,-1475.01,0.00019898,2]
[343335200,1732578645696,-500.0,0.00019898,2]
[343335201,1732578645706,-500.0,0.00019898,2]
[343335202,1732578645716,-500.0,0.00019898,2]
[343335203,1732578645726,-500.0,0.00019898,2]
[343335204,1732578645735,-500.0,0.00019898,2]
[343335205,1732578645744,-500.0,0.00019898,2]
[343335206,1732578645754,-500.0,0.00019898,2]
[343335207,1732578645763,-1075.9,0.00019898,2]
[343335208,1732578645773,-500.0,0.00019898,2]
[343335209,1732578645783,-732.0,0.00019898,2]
[343335210,1732578645793,-1154.19,0.00019898,2]
[343335211,1732578645803,-642.15,0.00019898,2]
[343335212,1732578645813,-500.0,0.00019898,2]
[343335213,1732578645823,-500.0,0.00019898,2]
[343335214,1732578645832,-591.24,0.00019898,2]
[343335215,1732578645842,-500.0,0.00019898,2]
[343335216,1732578645851,-500.0,0.00019898,2]
[343335217,1732578645861,-1670.59,0.00019898,2]
[343335218,1732578645870,-719.7,0.00019898,2]
[343335219,1732578645879,-500.0,0.00019899,2]
[343335220,1732578645888,-500.0,0.00019899,2]
[343335221,1732578645898,-500.0,0.00019899,2]
[343335222,1732578645907,-500.0,0.00019899,2]
[343335223,1732578645916,-504.16342792,0.00019899,2]
[343335224,1732578645925,-500.0,0.00019899,2]
[343335225,1732578645935,-502.74263733,0.00019899,2]
[343335226,1732578645944,-283.78746754,0.00019899,2]
[343335227,1732578645953,-500.0,0.00019899,2]
[343335228,1732578645962,-500.0,0.00019899,2]
[343335229,1732578645978,-500.0,0.00019899,2]
[343335230,1732578645987,-500.0,0.00019899,2]
[343335231,1732578645997,-500.0,0.00019899,2]
[343335232,1732578646006,-500.0,0.00019899,2]
[343335233,1732578646015,-500.0,0.00019899,2]
[343335234,1732578646024,-500.0,0.00019899,2]
[343335235,1732578646033,-2635.61,0.00019899,2]
[343335236,1732578646043,-2362.76,0.00019899,2]
[343335237,1732578646053,-500.0,0.00019899,2]
[343335238,1732578646062,-2794.18,0.00019899,2]
[343335239,1732578646071,-500.0,0.00019899,2]
[343335240,1732578646080,-500.0,0.00019899,2]
[343335241,1732578646089,-500.0,0.00019899,2]
[343335242,1732578646098,-500.0,0.00019899,2]
[343335243,1732578646107,-500.0,0.00019899,2]
[343335244,1732578646116,-220.04039044,0.00019899,2]
[343335245,1732578646125,-500.0,0.00019899,2]
[343335246,1732578646135,-1089.12,0.00019899,2]
[343335247,1732578646144,-502.93094298,0.00019899,2]
[343335248,1732578646153,-500.0,0.00019899,2]
[343335249,1732578646162,-500.0,0.00019899,2]
[343335250,1732578646171,-500.0,0.00019899,2]
[343335251,1732578646180,-1655.62,0.00019899,2]
[343335252,1732578646190,-1129.51,0.00019899,2]
[343335253,1732578646200,-500.0,0.00019899,2]
[343335254,1732578646212,-2238.28,0.00019899,2]
[343335255,1732578646224,-500.0,0.00019899,2]
[343335256,1732578646233,-1000.0,0.00019899,2]
[343335257,1732578646243,-500.0,0.00019899,2]
[343335258,1732578646254,-614.58,0.00019899,2]
[343335259,1732578646263,-756.07,0.00019899,2]
[343335260,1732578646272,-500.0,0.00019899,2]
[343335261,1732578646282,-500.0,0.00019899,2]
[343335262,1732578646291,-498.45548666,0.00019899,2]
[343335263,1732578646521,-500.0,0.00019899,2]
[343335264,1732578646565,-1537.24,0.00019899,2]
[343335265,1732578646584,-1093.57,0.00019899,2]
[343335266,1732578646594,-205.73284338,0.00019899,2]
[343335267,1732578646604,-500.0,0.00019899,2]
[343335268,1732578646614,-500.0,0.00019899,2]
[343335269,1732578646624,-1142.1,0.00019899,2]
[343335270,1732578646634,-502.2353484,0.00019899,2]
[343335272,1732578646643,-1287.72,0.00019899,2]
[343335274,1732578646653,-181.95362493,0.00019899,2]
[343335276,1732578646662,-500.0,0.00019899,2]
[343335278,1732578646672,-500.0,0.00019899,2]
[343335279,1732578646681,-1188.44,0.00019899,2]
[343335280,1732578646691,-500.0,0.00019899,2]
[343335281,1732578646700,-500.0,0.00019899,2]
[343335282,1732578646710,-198.27099848,0.00019899,2]
[343335283,1732578646721,-300.23004841,0.00019899,2]
[343335284,1732578646730,-500.0,0.00019899,2]
[343335285,1732578646740,-500.0,0.00019899,2]
[343335286,1732578646749,-2081.65,0.00019899,2]
[343335287,1732578646759,-1152.57,0.00019899,2]
[343335288,1732578646769,-500.0,0.00019899,2]
[343335289,1732578646779,-500.0,0.00019899,2]
[343335290,1732578646788,-500.0,0.00019899,2]
[343335291,1732578646798,-500.0,0.00019899,2]
[343335292,1732578646808,-500.0,0.00019899,2]
[343335293,1732578646818,-500.0,0.00019899,2]
[343335294,1732578646827,-500.0,0.00019899,2]
[343335295,1732578646837,-500.0,0.00019899,2]
[343335296,1732578646847,-500.0,0.00019899,2]
[343335297,1732578646856,-500.0,0.00019899,2]
[343335298,1732578646866,-1042.53141245,0.000199,2]
[343335299,1732578646875,-18817.60526444,0.000199,2]
[343335300,1732578646884,-925.0,0.000199,2]
[343335301,1732578646893,-420.0,0.0001993,2]
[343335302,1732578646902,-251.52247925,0.0001994,2]
[343335303,1732578646911,-5725.21014714,0.00019943,2]
[343335304,1732578646920,-251.52247925,0.00019947,2]
[343335305,1732578646930,-5725.21014714,0.00019947,2]
[343335306,1732578646939,-200.0,0.00019948,2]
[343335307,1732578646948,-5725.21014714,0.0001995,2]
[343335308,1732578646958,-4100.360012,0.00019952,2]
[343335309,1732578646970,-5725.21014714,0.00019955,2]
[343335310,1732578646979,-4100.360012,0.00019956,2]
[343335311,1732578646989,-251.52247925,0.00019956,2]
[343335312,1732578646999,-200.0,0.00019957,2]
[343335313,1732578647008,-200.0,0.00019957,2]
[343335314,1732578647018,-200.0,0.00019959,2]
[343335315,1732578647027,-4100.360012,0.00019963,2]
[343335316,1732578647036,-200.0,0.0001997,2]
[343335317,1732578647045,-500.0,0.00019973,2]
[343335318,1732578647055,-2572.186,0.00019973,2]
[343335319,1732578647064,-4100.360012,0.00019975,2]
[343335320,1732578647073,-251.52247925,0.00019976,2]
[343335321,1732578647082,-152.906,0.00019977,2]
[343335322,1732578647091,-200.0,0.00019978,2]
[343335323,1732578647100,-4100.360012,0.0001998,2]
[343335324,1732578647110,-5725.21014714,0.00019986,2]
[343335325,1732578647119,-5725.21014714,0.00019989,2]
[343335326,1732578647128,-200.0,0.00019989,2]
[343335327,1732578647137,-1226.69,0.00019992,2]
[343335328,1732578647147,-2654.98,0.00019992,2]
[343335329,1732578647156,-500.0,0.00019992,2]
[343335330,1732578647166,-500.0,0.00019993,2]
[343335331,1732578647176,-500.0,0.00019993,2]
[343335332,1732578647186,-500.0,0.00019993,2]
[343335333,1732578647196,-500.0,0.00019993,2]
[343335334,1732578647206,-500.0,0.00019993,2]
[343335335,1732578647222,-500.0,0.00019993,2]
[343335336,1732578647232,-500.0,0.00019993,2]
[343335337,1732578647241,-703.59877774,0.00019993,2]
[343335338,1732578647251,-1158.81,0.00019993,2]
[343335339,1732578647260,-500.0,0.00019993,2]
[343335340,1732578647270,-500.0,0.00019993,2]
[343335341,1732578647280,-851.01,0.00019993,2]
[343335342,1732578647290,-610.08,0.00019993,2]
[343335343,1732578647299,-500.0,0.00019993,2]
[343335344,1732578647308,-500.0,0.00019993,2]
[343335345,1732578647318,-505.76463489,0.00019993,2]
[343335346,1732578647327,-500.0,0.00019993,2]
[343335347,1732578647336,-500.0,0.00019993,2]
[343335348,1732578647345,-500.0,0.00019993,2]
[343335349,1732578647354,-1469.91,0.00019993,2]
[343335350,1732578647363,-500.0,0.00019993,2]
[343335351,1732578647372,-453.61539865,0.00019993,2]
[343335352,1732578647382,-500.0,0.00019993,2]
[343335353,1732578647391,-500.0,0.00019993,2]
[343335354,1732578647400,-500.0,0.00019993,2]
[343335355,1732578647409,-500.0,0.00019993,2]
[343335356,1732578647418,-500.0,0.00019993,2]
[343335357,1732578647428,-500.0,0.00019993,2]
[343335358,1732578647437,-502.70759284,0.00019993,2]
[343335359,1732578647446,-500.0,0.00019993,2]
[343335360,1732578647456,-500.0,0.00019993,2]
[343335361,1732578647468,-500.0,0.00019993,2]
[343335362,1732578647478,-514.8,0.00019993,2]
[343335363,1732578647487,-500.0,0.00019993,2]
[343335364,1732578647496,-2635.61,0.00019993,2]
[343335365,1732578647505,-2362.76,0.00019993,2]
[343335366,1732578647515,-291.88055893,0.00019993,2]
[343335367,1732578647525,-201.47992812,0.00019993,2]
[343335368,1732578647536,-2794.18,0.00019993,2]
[343335369,1732578647545,-500.0,0.00019993,2]
[343335370,1732578647555,-500.0,0.00019993,2]
[343335371,1732578647564,-500.0,0.00019993,2]
[343335372,1732578647574,-500.0,0.00019993,2]
[343335373,1732578647583,-530.24659828,0.00019993,2]
[343335374,1732578647593,-500.0,0.00019993,2]
[343335375,1732578647602,-500.0,0.00019993,2]
[343335376,1732578647612,-500.0,0.00019993,2]
[343335377,1732578647621,-500.0,0.00019993,2]
[343335378,1732578647631,-1089.12,0.00019993,2]
[343335379,1732578647640,-500.0,0.00019993,2]
[343335380,1732578647650,-500.0,0.00019993,2]
[343335381,1732578647659,-500.0,0.00019993,2]
[343335382,1732578647669,-500.0,0.00019993,2]
[343335383,1732578647678,-500.0,0.00019993,2]
[343335384,1732578647688,-500.0,0.00019993,2]
[343335385,1732578647698,-505.91712207,0.00019993,2]
[343335386,1732578647708,-500.0,0.00019993,2]
[343335387,1732578647721,-903.22,0.00019993,2]
[343335388,1732578647731,-662.1,0.00019993,2]
[343335389,1732578647740,-1655.62,0.00019993,2]
[343335390,1732578647750,-500.0,0.00019993,2]
[343335391,1732578647759,-1325.3,0.00019993,2]
[343335392,1732578647769,-500.0,0.00019993,2]
[343335393,1732578647779,-500.0,0.00019993,2]
[343335394,1732578647788,-1129.51,0.00019993,2]
[343335395,1732578647798,-500.0,0.00019993,2]
[343335396,1732578647807,-500.0,0.00019993,2]
[343335397,1732578647817,-500.0,0.00019993,2]
[343335398,1732578647826,-500.0,0.00019993,2]
[343335399,1732578647835,-500.0,0.00019993,2]
[343335400,1732578647845,-500.0,0.00019993,2]
[343335401,1732578647854,-2238.28,0.00019993,2]
[343335402,1732578647863,-500.0,0.00019993,2]
[343335403,1732578647872,-1000.0,0.00019993,2]
[343335404,1732578647881,-500.0,0.00019993,2]
[343335405,1732578647891,-500.0,0.00019993,2]
[343335406,1732578647900,-500.0,0.00019993,2]
[343335407,1732578647909,-565.42,0.00019993,2]
[343335408,1732578647919,-422.5256022,0.00019993,2]
[343335409,1732578647928,-4286.88,0.00019993,2]
[343335410,1732578647938,-4286.88,0.00019993,2]
[343335411,1732578647947,-500.0,0.00019993,2]
[343335412,1732578647957,-500.0,0.00019993,2]
[343335413,1732578647967,-500.0,0.00019993,2]
[343335414,1732578647977,-500.0,0.00019993,2]
[343335415,1732578647987,-614.58,0.00019993,2]
[343335416,1732578647996,-500.0,0.00019993,2]
[343335417,1732578648006,-500.0,0.00019993,2]
[343335418,1732578648015,-354.37357784,0.00019993,2]
[343335419,1732578648024,-2751.45,0.00019993,2]
[343335420,1732578648034,-2751.45,0.00019993,2]
[343335421,1732578648043,-500.0,0.00019993,2]
[343335422,1732578648053,-500.0,0.00019993,2]
[343335423,1732578648062,-756.07,0.00019993,2]
[343335424,1732578648071,-613.44,0.00019993,2]
[343335425,1732578648080,-639.46,0.00019993,2]
[343335426,1732578648090,-1307.71,0.00019993,2]
[343335427,1732578648098,-1307.71,0.00019993,2]
[343335428,1732578648108,-693.12,0.00019993,2]
[343335429,1732578648117,-5868.65,0.00019993,2]
[343335430,1732578648126,-2684.04,0.00019993,2]
[343335431,1732578648135,-808.28,0.00019993,2]
[343335432,1732578648144,-703.91,0.00019993,2]
[343335433,1732578648154,-500.0,0.00019993,2]
[343335434,1732578648163,-588.73,0.00019993,2]
[343335435,1732578648173,-520.19,0.00019993,2]
[343335436,1732578648182,-520.19,0.00019993,2]
[343335437,1732578648191,-500.0,0.00019993,2]
[343335438,1732578648201,-500.0,0.00019993,2]
[343335439,1732578648214,-10060.18,0.00019993,2]
[343335440,1732578648225,-10060.18,0.00019993,2]
[343335441,1732578648234,-500.0,0.00019993,2]
[343335442,1732578648243,-1475.01,0.00019993,2]
[343335443,1732578648254,-500.0,0.00019993,2]
[343335444,1732578648263,-1882.94,0.00019993,2]
[343335445,1732578648272,-1882.94,0.00019993,2]
[343335446,1732578648284,-500.0,0.00019993,2]
[343335447,1732578648293,-500.0,0.00019993,2]
[343335448,1732578648303,-500.0,0.00019993,2]
[343335449,1732578648313,-500.0,0.00019993,2]
[343335450,1732578648324,-500.0,0.00019993,2]
[343335451,1732578648334,-1255.28,0.00019993,2]
[343335452,1732578648343,-1255.28,0.00019993,2]
[343335453,1732578648353,-458.80918232,0.00019993,2]
[343335454,1732578648363,-500.0,0.00019993,2]
[343335455,1732578648374,-500.0,0.00019993,2]
[343335456,1732578648383,-1537.24,0.00019993,2]
[343335457,1732578648393,-1075.9,0.00019993,2]
[343335458,1732578648403,-1093.57,0.00019993,2]
[343335459,1732578648412,-500.0,0.00019993,2]
[343335460,1732578648422,-184.14,0.00019993,2]
[343335461,1732578648431,-3339.05,0.00019993,2]
[343335462,1732578648440,-481.14289901,0.00019993,2]
[343335463,1732578648450,-732.0,0.00019993,2]
[343335464,1732578648459,-1154.19,0.00019993,2]
[343335465,1732578648470,-1142.1,0.00019993,2]
[343335466,1732578648480,-642.15,0.00019993,2]
[343335467,1732578648489,-1287.72,0.00019993,2]
[343335468,1732578648498,-500.0,0.00019993,2]
[343335469,1732578648507,-500.0,0.00019993,2]
[343335470,1732578648517,-500.0,0.00019993,2]
[343335471,1732578648527,-1188.44,0.00019993,2]
[343335472,1732578648537,-503.20772168,0.00019993,2]
[343335473,1732578648547,-500.0,0.00019993,2]
[343335474,1732578648557,-543.98129208,0.00019993,2]
[343335475,1732578648566,-591.24,0.00019993,2]
[343335476,1732578648576,-500.0,0.00019993,2]
[343335477,1732578648586,-500.0,0.00019993,2]
[343335478,1732578648596,-2081.65,0.00019993,2]
[343335479,1732578648606,-1533.0,0.00019993,2]
[343335480,1732578648615,-500.0,0.00019993,2]
[343335481,1732578648625,-1152.57,0.00019993,2]
[343335482,1732578648636,-500.0,0.00019993,2]
[343335483,1732578648646,-500.0,0.00019993,2]
[343335484,1732578648656,-1670.59,0.00019993,2]
[343335485,1732578648666,-719.7,0.00019993,2]
[343335486,1732578648677,-500.0,0.00019993,2]
[343335487,1732578648687,-1226.69,0.00019993,2]
[343335488,1732578648697,-500.0,0.00019993,2]
[343335489,1732578648708,-345.97877456,0.00019993,2]
[343335490,1732578648719,-2654.98,0.00019993,2]
[343335491,1732578648729,-500.0,0.00019993,2]
[343335492,1732578648739,-500.0,0.00019994,2]
[343335493,1732578648749,-500.0,0.00019994,2]
[343335494,1732578648759,-500.0,0.00019994,2]
[343335495,1732578648769,-500.0,0.00019994,2]
[343335496,1732578648779,-500.0,0.00019994,2]
[343335497,1732578648788,-574.62801698,0.00019994,2]
[343335498,1732578648798,-500.0,0.00019994,2]
[343335499,1732578648808,-500.0,0.00019994,2]
[343335500,1732578648818,-500.0,0.00019994,2]
[343335501,1732578648829,-502.68392911,0.00019994,2]
[343335502,1732578648839,-500.0,0.00019994,2]
[343335503,1732578648848,-500.0,0.00019994,2]
[343335504,1732578648858,-500.0,0.00019994,2]
[343335505,1732578648868,-1158.81,0.00019994,2]
[343335506,1732578648877,-1158.81,0.00019994,2]
[343335507,1732578648887,-1158.81,0.00019994,2]
[343335508,1732578648896,-401.17567595,0.00019994,2]
[343335509,1732578648963,-500.0,0.00019994,2]
[343335510,1732578648976,-500.0,0.00019994,2]
[343335511,1732578648985,-500.0,0.00019994,2]
[343335512,1732578648994,-610.08,0.00019994,2]
[343335513,1732578649004,-610.08,0.00019994,2]
[343335514,1732578649013,-610.08,0.00019994,2]
[343335515,1732578649023,-500.0,0.00019994,2]
[343335516,1732578649032,-500.0,0.00019994,2]
[343335517,1732578649042,-500.0,0.00019994,2]
[343335518,1732578649051,-500.0,0.00019994,2]
[343335519,1732578649060,-500.0,0.00019994,2]
[343335520,1732578649069,-500.0,0.00019994,2]
[343335521,1732578649078,-500.0,0.00019994,2]
[343335522,1732578649088,-500.0,0.00019994,2]
[343335523,1732578649097,-500.0,0.00019994,2]
[343335524,1732578649107,-500.0,0.00019994,2]
[343335525,1732578649116,-500.0,0.00019994,2]
[343335526,1732578649125,-1469.91,0.00019994,2]
[343335527,1732578649134,-543.39,0.00019994,2]
[343335528,1732578649144,-1469.91,0.00019994,2]
[343335529,1732578649153,-1469.91,0.00019994,2]
[343335530,1732578649162,-500.0,0.00019994,2]
[343335531,1732578649171,-634.09080034,0.00019994,2]
[343335532,1732578649180,-500.0,0.00019994,2]
[343335533,1732578649189,-500.0,0.00019994,2]
[343335534,1732578649199,-500.0,0.00019994,2]
[343335535,1732578649210,-500.0,0.00019994,2]
[343335536,1732578649221,-500.0,0.00019994,2]
[343335537,1732578649231,-500.0,0.00019994,2]
[343335538,1732578649240,-1725.39,0.00019994,2]
[343335539,1732578649251,-1725.39,0.00019994,2]
[343335540,1732578649260,-1725.39,0.00019994,2]
[343335541,1732578649269,-1725.39,0.00019994,2]
[343335542,1732578649278,-573.28,0.00019994,2]
[343335543,1732578649289,-573.28,0.00019994,2]
[343335544,1732578649298,-573.28,0.00019994,2]
[343335545,1732578649307,-573.28,0.00019994,2]
[343335546,1732578649317,-500.0,0.00019994,2]
[343335547,1732578649326,-500.0,0.00019994,2]
[343335548,1732578649335,-500.0,0.00019994,2]
[343335549,1732578649344,-500.0,0.00019994,2]
[343335550,1732578649353,-500.0,0.00019994,2]
[343335551,1732578649362,-500.0,0.00019994,2]
[343335552,1732578649372,-208.64346544,0.00019994,2]
[343335553,1732578649381,-1102.96,0.00019994,2]
[343335554,1732578649390,-1102.96,0.00019994,2]
[343335555,1732578649399,-1102.96,0.00019994,2]
[343335556,1732578649408,-1102.96,0.00019994,2]
[343335557,1732578649417,-500.0,0.00019994,2]
[343335558,1732578649427,-500.0,0.00019994,2]
[343335559,1732578649436,-500.0,0.00019994,2]
[343335560,1732578649446,-1159.46,0.00019994,2]
[343335561,1732578649455,-1159.46,0.00019994,2]
[343335562,1732578649464,-1159.46,0.00019994,2]
[343335563,1732578649478,-1159.46,0.00019994,2]
[343335564,1732578649490,-1696.48,0.00019994,2]
[343335565,1732578649500,-1696.48,0.00019994,2]
[343335566,1732578649510,-1696.48,0.00019994,2]
[343335567,1732578649519,-500.0,0.00019994,2]
[343335568,1732578649529,-1696.48,0.00019994,2]
[343335569,1732578649538,-500.0,0.00019994,2]
[343335570,1732578649548,-500.0,0.00019994,2]
[343335571,1732578649557,-329.50299764,0.00019994,2]
[343335572,1732578649567,-500.0,0.00019994,2]
[343335573,1732578649577,-500.0,0.00019994,2]
[343335574,1732578649587,-500.0,0.00019994,2]
[343335575,1732578649597,-500.0,0.00019994,2]
[343335576,1732578649608,-500.0,0.00019994,2]
[343335577,1732578649617,-500.0,0.00019994,2]
[343335578,1732578649628,-500.0,0.00019994,2]